fUST/lending_fUST_20250106
["ID","MTS","AMOUNT","RATE_DAILY","PERIOD"]
[347777977,1736102948272,-196.107,0.00019713,2]
[347777978,1736102948293,-298.29792621,0.00019715,2]
[347777979,1736102948314,-300.0,0.0001981,2]
[347777980,1736102948337,-156.01,0.00019811,2]
[347777981,1736102948360,-500.0,0.00019811,3]
[347777982,1736102948382,-500.0,0.00019811,3]
[347777983,1736102948403,-500.0,0.00019811,3]
[347777984,1736102948423,-500.0,0.00019811,3]
[347777985,1736102948448,-500.0,0.00019811,3]
[347777986,1736102948468,-500.0,0.00019811,3]
[347777987,1736102948489,-500.0,0.00019811,3]
[347777988,1736102948509,-500.0,0.00019811,3]
[347777989,1736102948529,-500.0,0.00019811,3]
[347777990,1736102948551,-500.0,0.00019811,3]
[347777991,1736102948573,-500.0,0.00019811,3]
[347777992,1736102948593,-500.0,0.00019811,3]
[347777993,1736102948615,-500.0,0.00019811,3]
[347777994,1736102948637,-500.0,0.00019811,3]
[347777995,1736102948658,-198.12338279,0.00019811,3]
[347777996,1736102948680,-500.0,0.00019811,3]
[347777997,1736102948701,-500.0,0.00019811,3]
[347777998,1736102948722,-500.0,0.00019811,3]
[347777999,1736102948744,-500.0,0.00019811,3]
[347778000,1736102948766,-500.0,0.00019811,3]
[347778001,1736102948928,-500.0,0.00019811,3]
[347778002,1736102948954,-500.0,0.00019811,3]
[347778003,1736102948975,-500.0,0.00019811,3]
[347778004,1736102948997,-295.4111646,0.00019811,3]
[347778005,1736102949017,-500.0,0.00019811,3]
[347778006,1736102949038,-500.0,0.00019811,3]
[347778007,1736102949060,-500.0,0.00019811,3]
[347778008,1736102949080,-500.0,0.00019811,3]
[347778009,1736102949102,-500.0,0.00019811,3]
[347778010,1736102949123,-500.0,0.00019811,3]
[347778011,1736102949144,-500.0,0.00019811,3]
[347778012,1736102949171,-500.0,0.00019811,3]
[347778013,1736102949193,-500.0,0.00019811,3]
[347778014,1736102949215,-500.0,0.00019811,3]
[347778015,1736102949236,-500.0,0.00019811,3]
[347778016,1736102949257,-500.0,0.00019811,3]
[347778017,1736102949279,-500.0,0.00019811,3]
[347778018,1736102949302,-500.0,0.00019811,3]
[347778019,1736102949325,-500.0,0.00019811,3]
[347778020,1736102949345,-343.57039569,0.00019811,3]
[347778021,1736102949367,-500.0,0.00019811,3]
[347778022,1736102949387,-500.0,0.00019811,3]
[347778023,1736102949408,-500.0,0.00019811,3]
[347778024,1736102949430,-500.0,0.00019811,3]
[347778025,1736102949450,-500.0,0.00019811,3]
[347778026,1736102949471,-590.41392942,0.00019811,3]
[347778027,1736102949494,-500.0,0.00019811,3]
[347778028,1736102949515,-500.0,0.00019811,3]
[347778029,1736102949536,-500.0,0.00019811,3]
[347778030,1736102949556,-500.0,0.00019811,3]
[347778031,1736102949579,-500.0,0.00019811,3]
[347778032,1736102949600,-500.0,0.00019811,3]
[347778033,1736102949622,-500.0,0.00019811,3]
[347778034,1736102949644,-500.0,0.00019811,3]
[347778035,1736102949666,-500.0,0.00019811,3]
[347778036,1736102949686,-500.0,0.00019811,3]
[347778037,1736102949708,-500.0,0.00019811,3]
[347778038,1736102949733,-500.0,0.00019811,3]
[347778039,1736102949754,-500.0,0.00019811,3]
[347778040,1736102949776,-500.0,0.00019811,3]
[347778041,1736102949798,-500.0,0.00019811,3]
[347778042,1736102949821,-500.0,0.00019811,3]
[347778043,1736102949842,-500.0,0.00019811,3]
[347778044,1736102949863,-500.0,0.00019811,3]
[347778045,1736102949885,-500.0,0.00019811,3]
[347778046,1736102949907,-500.0,0.00019811,3]
[347778047,1736102949929,-500.0,0.00019811,3]
[347778048,1736102949950,-500.0,0.00019811,3]
[347778049,1736102949971,-500.0,0.00019811,3]
[347778050,1736102949993,-500.0,0.00019811,3]
[347778051,1736102950014,-500.0,0.00019811,3]
[347778052,1736102950034,-500.0,0.00019811,3]
[347778053,1736102950055,-500.0,0.00019811,3]
[347778054,1736102950077,-500.0,0.00019811,3]
[347778055,1736102950098,-500.40210203,0.00019811,3]
[347778056,1736102950122,-500.0,0.00019811,3]
[347778057,1736102950144,-500.0,0.00019811,3]
[347778058,1736102950169,-526.56,0.00019812,3]
[347778059,1736102950191,-500.0,0.00019812,3]
[347778060,1736102950214,-500.0,0.00019812,3]
[347778061,1736102950236,-501.14942367,0.00019812,3]
[347778062,1736102950258,-500.0,0.00019812,3]
[347778063,1736102950280,-501.14286277,0.00019812,3]
[347778064,1736102950303,-500.0,0.00019812,3]
[347778065,1736102950326,-488.62218547,0.00019812,3]
[347778066,1736102950348,-500.0,0.00019812,3]
[347778067,1736102950373,-500.0,0.00019812,3]
[347778068,1736102950395,-536.99,0.00019812,3]
[347778069,1736102950416,-500.0,0.00019812,3]
[347778070,1736102950439,-500.0,0.00019812,3]
[347778071,1736102950462,-500.0,0.00019812,3]
[347778072,1736102950485,-500.0,0.00019812,3]
[347778073,1736102950507,-500.0,0.00019812,3]
[347778074,1736102950528,-558.73,0.00019812,3]
[347778075,1736102950551,-500.0,0.00019812,3]
[347778076,1736102950573,-500.0,0.00019812,3]
[347778077,1736102950596,-500.0,0.00019812,3]
[347778078,1736102950621,-500.0,0.00019812,3]
[347778079,1736102950643,-500.0,0.00019812,3]
[347778080,1736102950664,-500.0,0.00019812,3]
[347778081,1736102950690,-500.0,0.00019812,3]
[347778082,1736102950712,-500.0,0.00019812,3]
[347778083,1736102950733,-500.0,0.00019812,3]
[347778084,1736102950755,-500.0,0.00019812,3]
[347778085,1736102950777,-500.0,0.00019812,3]
[347778086,1736102950799,-500.0,0.00019812,3]
[347778087,1736102950820,-500.0,0.00019812,3]
[347778088,1736102950842,-500.0,0.00019812,3]
[347778089,1736102950865,-500.0,0.00019812,3]
[347778090,1736102950890,-500.0,0.00019812,3]
[347778091,1736102950912,-630.23,0.00019812,3]
[347778092,1736102950933,-500.0,0.00019812,3]
[347778093,1736102950955,-500.0,0.00019812,3]
[347778094,1736102950978,-500.0,0.00019812,3]
[347778095,1736102951000,-500.0,0.00019812,3]
[347778096,1736102951023,-500.0,0.00019812,3]
[347778097,1736102951045,-500.0,0.00019812,3]
[347778098,1736102951067,-500.0,0.00019812,3]
[347778099,1736102951089,-500.0,0.00019812,3]
[347778100,1736102951114,-500.0,0.00019812,3]
[347778101,1736102951136,-500.0,0.00019812,3]
[347778102,1736102951158,-521.52,0.00019812,3]
[347778103,1736102951182,-500.0,0.00019812,3]
[347778104,1736102951204,-500.0,0.00019812,3]
[347778105,1736102951228,-500.0,0.00019812,3]
[347778106,1736102951249,-500.0,0.00019812,3]
[347778107,1736102951272,-500.0,0.00019812,3]
[347778108,1736102951293,-500.0,0.00019812,3]
[347778109,1736102951315,-500.0,0.00019812,3]
[347778110,1736102951337,-500.0,0.00019812,3]
[347778111,1736102951361,-500.0,0.00019812,3]
[347778112,1736102951384,-500.0,0.00019812,3]
[347778113,1736102951405,-531.40298857,0.00019812,3]
[347778114,1736102951428,-500.0,0.00019812,3]
[347778115,1736102951452,-500.0,0.00019812,3]
[347778116,1736102951473,-500.0,0.00019812,3]
[347778117,1736102951495,-490.0818257,0.00019812,3]
[347778118,1736102960129,-500.0,0.00019452,3]
[347778119,1736102960150,-207.90472169,0.00019613,2]
[347778120,1736102960175,-207.90472168,0.00019711,2]
[347778121,1736102960197,-451.99615663,0.00019726,3]
[347778122,1736102962106,-48.00384337,0.00019726,3]
[347778123,1736102962127,-500.0,0.00019811,3]
[347778124,1736102962149,-194.2811157,0.00019811,3]
[347778125,1736102962172,-263.35654077,0.00019811,3]
[347778126,1736102962192,-238.60448572,0.00019811,3]
[347778127,1736102962213,-9.9181743,0.00019812,3]
[347778128,1736102962238,-500.0,0.00019812,3]
[347778129,1736102962260,-500.0,0.00019812,2]
[347778130,1736102962282,-500.0,0.00019812,2]
[347778131,1736102962302,-500.0,0.00019812,2]
[347778132,1736102962324,-168.30574748,0.00019812,2]
[347778133,1736102962346,-500.0,0.00019812,2]
[347778134,1736102962368,-500.0,0.00019812,2]
[347778135,1736102962391,-500.0,0.00019812,2]
[347778136,1736102962411,-376.64049445,0.00019812,2]
[347778137,1736102962432,-448.39724032,0.00019812,2]
[347778138,1736102962456,-500.0,0.00019812,2]
[347778139,1736102962478,-500.0,0.00019812,2]
[347778140,1736102962499,-500.0,0.00019812,2]
[347778141,1736102962520,-500.0,0.00019812,2]
[347778142,1736102962542,-554.35,0.00019812,3]
[347778143,1736102962562,-500.0,0.00019812,3]
[347778144,1736102962583,-500.0,0.00019812,3]
[347778145,1736102962604,-500.0,0.00019812,3]
[347778146,1736102962625,-500.0,0.00019812,3]
[347778147,1736102962646,-500.0,0.00019812,3]
[347778148,1736102962667,-500.0,0.00019812,3]
[347778149,1736102962689,-500.0,0.00019812,3]
[347778150,1736102962710,-500.0,0.00019812,3]
[347778151,1736102962733,-500.0,0.00019812,3]
[347778152,1736102962755,-500.0,0.00019812,3]
[347778153,1736102962776,-500.0,0.00019812,3]
[347778154,1736102962798,-500.0,0.00019812,3]
[347778155,1736102962821,-500.0,0.00019812,3]
[347778156,1736102962842,-500.0,0.00019812,3]
[347778157,1736102962864,-1843.3,0.00019812,3]
[347778158,1736102962886,-500.0,0.00019812,3]
[347778159,1736102962907,-500.0,0.00019812,3]
[347778160,1736102962928,-500.0,0.00019812,3]
[347778161,1736102962950,-500.0,0.00019812,3]
[347778162,1736102962971,-500.0,0.00019812,3]
[347778163,1736102962992,-500.0,0.00019812,3]
[347778164,1736102963014,-395.48,0.00019812,3]
[347778165,1736102963037,-530.4,0.00019812,3]
[347778166,1736102963057,-295.1084241,0.00019813,2]
[347778167,1736102963078,-500.0,0.00019813,3]
[347778168,1736102963099,-500.0,0.00019813,3]
[347778169,1736102963120,-346.01707819,0.00019813,3]
[347778170,1736102963141,-450.99270055,0.00019813,3]
[347778171,1736102963164,-500.0,0.00019813,3]
[347778172,1736102963185,-500.0,0.00019813,3]
[347778173,1736102963206,-500.0,0.00019813,3]
[347778174,1736102963227,-500.0,0.00019813,3]
[347778175,1736102963250,-500.0,0.00019813,3]
[347778176,1736102963273,-500.0,0.00019813,3]
[347778177,1736102963296,-506.57013202,0.00019813,3]
[347778178,1736102963317,-500.0,0.00019813,3]
[347778179,1736102963341,-500.0,0.00019813,3]
[347778180,1736102963363,-512.16635962,0.00019813,3]
[347778181,1736102963385,-425.84574528,0.00019813,3]
[347778182,1736102963405,-500.0,0.00019813,3]
[347778183,1736102963427,-500.0,0.00019813,3]
[347778184,1736102963448,-500.0,0.00019813,3]
[347778185,1736102963470,-500.0,0.00019813,3]
[347778186,1736102963492,-500.0,0.00019813,3]
[347778187,1736102963512,-500.0,0.00019813,3]
[347778188,1736102963532,-500.0,0.00019813,3]
[347778189,1736102963554,-71.67464166,0.00019813,3]
[347778191,1736102973161,-500.0,0.00019811,3]
[347778192,1736102973190,-500.0,0.00019812,3]
[347778193,1736102973227,-500.0,0.00019812,3]
[347778194,1736102973250,-500.0,0.00019812,3]
[347778195,1736102973273,-428.32535834,0.00019813,3]
[347778196,1736102973298,-500.0,0.00019813,3]
[347778197,1736102973320,-512.7715181,0.00019813,3]
[347778198,1736102973342,-500.0,0.00019813,3]
[347778199,1736102973364,-416.03350711,0.00019813,3]
[347778200,1736102973389,-503.68711025,0.00019813,3]
[347778201,1736102973412,-500.0,0.00019813,3]
[347778202,1736102973435,-500.0,0.00019813,3]
[347778203,1736102973459,-500.0,0.00019813,3]
[347778204,1736102973483,-500.0,0.00019813,3]
[347778205,1736102973506,-500.0,0.00019813,3]
[347778206,1736102973531,-500.0,0.00019813,3]
[347778207,1736102973555,-500.0,0.00019813,3]
[347778208,1736102973719,-500.0,0.00019813,3]
[347778209,1736102973744,-506.98458546,0.00019813,3]
[347778210,1736102973768,-502.73148689,0.00019813,3]
[347778211,1736102973790,-500.0,0.00019813,3]
[347778212,1736102973813,-500.0,0.00019813,3]
[347778213,1736102973836,-500.0,0.00019813,3]
[347778214,1736102973863,-500.0,0.00019813,3]
[347778215,1736102973888,-500.0,0.00019813,3]
[347778216,1736102973926,-500.0,0.00019813,3]
[347778217,1736102973960,-500.0,0.00019813,3]
[347778218,1736102973996,-500.0,0.00019813,3]
[347778219,1736102974029,-505.07602194,0.00019813,3]
[347778220,1736102974061,-500.0,0.00019813,3]
[347778221,1736102974095,-500.0,0.00019813,3]
[347778222,1736102974129,-500.0,0.00019813,3]
[347778223,1736102974165,-500.0,0.00019813,3]
[347778224,1736102974207,-500.0,0.00019813,3]
[347778225,1736102974247,-500.0,0.00019813,3]
[347778226,1736102974281,-500.0,0.00019814,3]
[347778227,1736102974315,-500.0,0.00019814,3]
[347778228,1736102974349,-500.0,0.00019814,3]
[347778229,1736102974383,-517.73075808,0.00019814,3]
[347778230,1736102974417,-581.7637746,0.00019814,3]
[347778231,1736102974450,-500.0,0.00019814,3]
[347778232,1736102974482,-500.82931552,0.00019815,3]
[347778233,1736102974518,-500.0,0.00019815,2]
[347778234,1736102974555,-500.0,0.00019815,3]
[347778235,1736102974589,-500.0,0.00019873,2]
[347778236,1736102974626,-501.30750501,0.00019873,2]
[347778237,1736102974658,-500.0,0.00019873,2]
[347778238,1736102974694,-423.73092737,0.00019873,2]
[347778239,1736102974732,-191.563572,0.000199,8]
[347778240,1736102974765,-228.62693159,0.000199,2]
[347778241,1736102974800,-20984.74603622,0.0002,2]
[347778272,1736103032321,-150.0,0.000189,2]
[347778275,1736103032332,-300.0,0.0001981,2]
[347778277,1736103032343,-500.0,0.00019811,3]
[347778279,1736103032355,-500.0,0.00019811,3]
[347778281,1736103032365,-500.0,0.00019811,3]
[347778283,1736103032376,-500.0,0.00019811,3]
[347778285,1736103032387,-504.39446717,0.00019811,3]
[347778287,1736103032398,-500.0,0.00019811,3]
[347778289,1736103032410,-372.14,0.00019811,3]
[347778291,1736103032420,-392.75,0.00019811,3]
[347778293,1736103032431,-500.0,0.00019811,3]
[347778296,1736103032442,-500.0,0.00019811,3]
[347778298,1736103032453,-209.69,0.00019811,3]
[347778300,1736103032464,-500.0,0.00019811,3]
[347778302,1736103032476,-500.0,0.00019812,3]
[347778304,1736103032487,-500.0,0.00019812,3]
[347778307,1736103032498,-500.0,0.00019812,3]
[347778310,1736103032509,-500.0,0.00019812,3]
[347778313,1736103032520,-500.0,0.00019812,3]
[347778318,1736103032533,-500.0,0.00019812,3]
[347778321,1736103032544,-500.0,0.00019812,3]
[347778324,1736103032555,-3417.06730893,0.0002,2]
[347778327,1736103032567,-500.0,0.0002,3]
[347778330,1736103032577,-228.62693141,0.00020003,2]
[347778334,1736103032588,-232.38085809,0.00020085,3]
[347778337,1736103032598,-500.0,0.00020085,3]
[347778368,1736103032745,-500.0,0.00020085,3]
[347778370,1736103032756,-500.0,0.00020085,3]
[347778372,1736103032766,-487.81,0.00020085,3]
[347778374,1736103032776,-500.0,0.00020085,3]
[347778375,1736103032785,-481.66,0.00020085,3]
[347778376,1736103032795,-266.37,0.00020086,3]
[347778378,1736103032805,-241.4,0.00020086,3]
[347778380,1736103032815,-252.1,0.00020086,3]
[347778382,1736103032824,-246.68,0.00020086,3]
[347778383,1736103032834,-1843.3,0.00020086,3]
[347778385,1736103032843,-419.63,0.00020086,3]
[347778387,1736103032853,-272.26056296,0.00020087,3]
[347778388,1736103032863,-500.0,0.00020087,3]
[347778389,1736103032873,-500.0,0.00020087,3]
[347778390,1736103032883,-241.07,0.00020087,3]
[347778391,1736103032892,-500.0,0.00020089,3]
[347778392,1736103032902,-228.62693141,0.00020107,2]
[347778393,1736103032911,-228.62693141,0.0002021,2]
[347778394,1736103032920,-596.84,0.00020273,3]
[347778395,1736103032930,-228.62693141,0.00020314,2]
[347778396,1736103032940,-500.0,0.00020359,3]
[347778397,1736103032950,-500.0,0.00020359,3]
[347778398,1736103032959,-251.04,0.00020359,3]
[347778399,1736103032969,-500.0,0.00020359,3]
[347778400,1736103032978,-1843.3,0.0002036,3]
[347778401,1736103032988,-500.0,0.00020361,3]
[347778402,1736103032998,-500.0,0.00020361,3]
[347778403,1736103033007,-500.0,0.00020363,3]
[347778404,1736103033017,-228.62693141,0.00020417,2]
[347778405,1736103033027,-228.62693141,0.00020521,2]
[347778406,1736103033036,-228.62693141,0.00020624,2]
[347778407,1736103033047,-500.0,0.00020633,3]
[347778408,1736103033057,-629.45,0.00020633,3]
[347778409,1736103033067,-500.0,0.00020633,3]
[347778410,1736103033076,-172.86261087,0.00020634,3]
[347778411,1736103033084,-1843.3,0.00020634,3]
[347778412,1736103033094,-500.0,0.00020635,3]
[347778413,1736103033103,-500.0,0.00020635,3]
[347778414,1736103033112,-500.0,0.00020637,3]
[347778415,1736103033121,-228.62693141,0.00020728,2]
[347778416,1736103033129,-228.62693141,0.00020831,2]
[347778417,1736103033138,-500.0,0.00020907,3]
[347778418,1736103033148,-167.25,0.00020907,3]
[347778419,1736103033158,-1843.3,0.00020908,3]
[347778420,1736103033168,-500.0,0.00020909,3]
[347778421,1736103033180,-311.25,0.00020909,3]
[347778422,1736103033189,-500.0,0.00020911,3]
[347778423,1736103033199,-228.62693141,0.00020934,2]
[347778424,1736103033208,-228.62693141,0.00021038,2]
[347778425,1736103033217,-228.62693141,0.00021141,2]
[347778426,1736103033225,-500.0,0.00021181,3]
[347778427,1736103033234,-1843.3,0.00021182,3]
[347778428,1736103033244,-500.0,0.00021183,3]
[347778429,1736103033253,-500.0,0.00021185,3]
[347778430,1736103033261,-500.0,0.00021212,2]
[347778431,1736103033272,-500.0,0.00021212,2]
[347778432,1736103033281,-228.62693141,0.00021245,2]
[347778433,1736103033291,-228.62693141,0.00021348,2]
[347778434,1736103033301,-228.62693141,0.00021452,2]
[347778435,1736103033311,-500.0,0.00021455,3]
[347778436,1736103033320,-1843.3,0.00021456,3]
[347778437,1736103033330,-500.0,0.00021457,3]
[347778438,1736103033339,-500.0,0.00021459,3]
[347778439,1736103033349,-500.0,0.00021539,2]
[347778440,1736103033358,-338.53772778,0.00021539,2]
[347778441,1736103033368,-228.62693141,0.00021555,2]
[347778442,1736103033378,-420.0,0.00021575,2]
[347778443,1736103033388,-228.62693141,0.00021659,2]
[347778444,1736103033398,-500.0,0.00021729,3]
[347778445,1736103033408,-1843.3,0.0002173,3]
[347778446,1736103033418,-500.0,0.00021731,3]
[347778447,1736103033428,-500.0,0.00021733,3]
[347778448,1736103033441,-500.4929567,0.0002176,2]
[347778449,1736103033451,-228.62693141,0.00021762,2]
[347778450,1736103033462,-365.215,0.000218,2]
[347778451,1736103033472,-238.63834096,0.00021863,2]
[347778452,1736103033481,-228.62693141,0.00021866,2]
[347778453,1736103033491,-500.0,0.00021963,3]
[347778454,1736103033502,-500.0,0.00021963,3]
[347778455,1736103033522,-387.23855346,0.00021963,3]
[347778456,1736103033532,-500.0,0.00021963,3]
[347778457,1736103033542,-500.0,0.00021963,3]
[347778458,1736103033552,-500.0,0.00021963,3]
[347778459,1736103033562,-500.0,0.00021963,3]
[347778460,1736103033572,-500.0,0.00021963,3]
[347778461,1736103033582,-500.0,0.00021963,3]
[347778462,1736103033592,-500.0,0.00021963,3]
[347778463,1736103033602,-500.0,0.00021963,3]
[347778464,1736103033612,-500.0,0.00021963,3]
[347778465,1736103033622,-500.0,0.00021963,3]
[347778466,1736103033632,-500.0,0.00021963,3]
[347778467,1736103033642,-500.0,0.00021963,3]
[347778468,1736103033651,-500.0,0.00021963,3]
[347778469,1736103033661,-500.0,0.00021963,3]
[347778470,1736103033672,-500.0,0.00021963,3]
[347778471,1736103033682,-500.0,0.00021963,3]
[347778472,1736103033692,-500.0,0.00021963,3]
[347778473,1736103033702,-500.0,0.00021963,3]
[347778474,1736103033712,-500.0,0.00021963,3]
[347778475,1736103033722,-599.31565938,0.00021963,3]
[347778476,1736103033732,-500.0,0.00021963,3]
[347778477,1736103033742,-564.50315759,0.00021963,3]
[347778478,1736103033752,-500.0,0.00021963,3]
[347778479,1736103033762,-500.0,0.00021963,3]
[347778480,1736103033772,-500.0,0.00021963,3]
[347778481,1736103033783,-500.0,0.00021963,3]
[347778482,1736103033793,-500.0,0.00021963,3]
[347778483,1736103033803,-501.40697881,0.00021963,3]
[347778484,1736103033812,-500.0,0.00021963,3]
[347778485,1736103033822,-500.0,0.00021963,3]
[347778486,1736103033832,-500.8771841,0.00021963,3]
[347778487,1736103033842,-500.0,0.00021963,3]
[347778488,1736103033852,-500.0,0.00021963,3]
[347778489,1736103033862,-500.0,0.00021963,3]
[347778490,1736103033872,-500.0,0.00021963,3]
[347778491,1736103033881,-500.0,0.00021963,3]
[347778492,1736103033891,-500.0,0.00021963,3]
[347778493,1736103033901,-500.0,0.00021963,3]
[347778494,1736103033911,-500.0,0.00021963,3]
[347778495,1736103033921,-500.0,0.00021963,3]
[347778496,1736103033931,-500.0,0.00021963,3]
[347778497,1736103033941,-500.0,0.00021963,3]
[347778498,1736103033951,-500.0,0.00021963,3]
[347778499,1736103033962,-500.0,0.00021963,3]
[347778500,1736103033971,-500.0,0.00021963,3]
[347778501,1736103033981,-500.0,0.00021963,3]
[347778502,1736103033991,-500.0,0.00021963,3]
[347778503,1736103034001,-500.0,0.00021963,3]
[347778504,1736103034011,-500.0,0.00021963,3]
[347778505,1736103034021,-500.0,0.00021963,3]
[347778506,1736103034031,-500.0,0.00021963,3]
[347778507,1736103034040,-500.0,0.00021963,3]
[347778508,1736103034050,-500.0,0.00021963,3]
[347778509,1736103034060,-502.37061154,0.00021963,3]
[347778510,1736103034070,-500.0,0.00021963,3]
[347778511,1736103034080,-500.0,0.00021963,3]
[347778512,1736103034091,-500.0,0.00021963,3]
[347778513,1736103034101,-500.0,0.00021963,3]
[347778514,1736103034112,-500.0,0.00021963,3]
[347778515,1736103034122,-500.0,0.00021963,3]
[347778516,1736103034132,-500.0,0.00021963,3]
[347778517,1736103034142,-500.0,0.00021963,3]
[347778518,1736103034152,-500.0,0.00021963,3]
[347778519,1736103034162,-501.86012052,0.00021963,3]
[347778520,1736103034172,-595.94479281,0.00021963,3]
[347778521,1736103034187,-500.0,0.00021963,3]
[347778522,1736103034197,-500.0,0.00021963,3]
[347778523,1736103034207,-500.0,0.00021963,3]
[347778524,1736103034218,-549.37,0.00021963,3]
[347778525,1736103034230,-500.0,0.00021963,3]
[347778526,1736103034240,-500.0,0.00021963,3]
[347778527,1736103034250,-500.0,0.00021963,3]
[347778528,1736103034261,-500.0,0.00021963,3]
[347778529,1736103034271,-500.0,0.00021963,3]
[347778530,1736103034280,-500.0,0.00021963,3]
[347778531,1736103034291,-500.0,0.00021963,3]
[347778532,1736103034301,-500.0,0.00021963,3]
[347778533,1736103034311,-500.0,0.00021963,3]
[347778534,1736103034321,-500.0,0.00021963,3]
[347778535,1736103034330,-500.0,0.00021963,3]
[347778536,1736103034340,-500.0,0.00021963,3]
[347778537,1736103034350,-500.0,0.00021963,3]
[347778538,1736103034360,-500.0,0.00021963,3]
[347778539,1736103034369,-500.0,0.00021963,3]
[347778540,1736103034379,-500.0,0.00021963,3]
[347778541,1736103034389,-500.0,0.00021963,3]
[347778542,1736103034399,-502.25217097,0.00021963,3]
[347778543,1736103034409,-554.00077562,0.00021963,3]
[347778544,1736103034419,-500.0,0.00021963,3]
[347778545,1736103034429,-500.0,0.00021963,3]
[347778546,1736103034439,-500.0,0.00021963,3]
[347778547,1736103034450,-257.08029336,0.00021963,3]
[347778548,1736103034460,-500.0,0.00021963,3]
[347778549,1736103034471,-500.0,0.00021963,3]
[347778550,1736103034480,-500.0,0.00021963,3]
[347778551,1736103034493,-500.0,0.00021963,3]
[347778552,1736103034503,-524.95779028,0.00021963,3]
[347778553,1736103034513,-500.0,0.00021963,3]
[347778554,1736103034531,-171.64340415,0.00021963,3]
[347778555,1736103034540,-500.0,0.00021963,3]
[347778556,1736103034550,-500.0,0.00021963,3]
[347778557,1736103034560,-500.0,0.00021963,3]
[347778558,1736103034570,-500.0,0.00021963,3]
[347778559,1736103034579,-500.0,0.00021963,3]
[347778560,1736103034589,-500.0,0.00021963,3]
[347778561,1736103034598,-500.0,0.00021963,3]
[347778562,1736103034609,-500.0,0.00021963,3]
[347778563,1736103034619,-500.0,0.00021963,3]
[347778564,1736103034631,-500.0,0.00021963,3]
[347778565,1736103034642,-501.89887644,0.00021963,3]
[347778566,1736103034651,-500.0,0.00021963,3]
[347778567,1736103034660,-500.0,0.00021963,3]
[347778568,1736103034669,-500.0,0.00021963,3]
[347778569,1736103034679,-500.0,0.00021963,3]
[347778570,1736103034689,-500.0,0.00021963,3]
[347778571,1736103034699,-500.0,0.00021963,3]
[347778572,1736103034709,-500.0,0.00021963,3]
[347778573,1736103034718,-228.62693141,0.00021969,2]
[347778574,1736103034728,-623.40155108,0.00021973,2]
[347778575,1736103034737,-500.0,0.00021973,2]
[347778576,1736103034747,-348.9015212,0.00022,2]
[347778577,1736103034756,-352.33,0.00022003,3]
[347778578,1736103034766,-1843.3,0.00022004,3]
[347778579,1736103034774,-500.0,0.00022005,3]
[347778580,1736103034783,-500.0,0.00022007,3]
[347778581,1736103034793,-352.8433746,0.00022041,2]
[347778582,1736103034802,-352.8433746,0.00022041,2]
[347778583,1736103034812,-228.62693141,0.00022072,2]
[347778584,1736103034821,-238.63834095,0.00022111,2]
[347778585,1736103034831,-228.62693141,0.00022176,2]